fUSD/lending_fUSD_20240914
["ID","MTS","AMOUNT","RATE_DAILY","PERIOD"]
[338122867,1726285847956,-694.58,0.00014999,2]
[338122869,1726285847967,-694.61717788,0.00014999,2]
[338122871,1726285847978,-340.67578864,0.00014999,2]
[338122873,1726285847989,-500.0,0.00014999,2]
[338122875,1726285848000,-500.0,0.00014999,2]
[338122877,1726285848011,-500.0,0.00014999,2]
[338122879,1726285848022,-500.0,0.00014999,2]
[338122881,1726285848033,-500.0,0.00014999,2]
[338122884,1726285848044,-500.0,0.00014999,2]
[338122886,1726285848055,-500.0,0.00014999,2]
[338122888,1726285848066,-500.0,0.00014999,2]
[338122890,1726285848077,-500.0,0.00014999,2]
[338122892,1726285848088,-500.0,0.00014999,2]
[338122894,1726285848099,-500.0,0.00014999,2]
[338122896,1726285848110,-500.0,0.00014999,2]
[338122898,1726285848121,-500.0,0.00014999,2]
[338122900,1726285848132,-228.34709958,0.00014999,2]
[338122902,1726285848143,-500.0,0.00014999,2]
[338122904,1726285848154,-626.9523141,0.00014999,2]
[338122907,1726285848168,-500.0,0.00014999,2]
[338122909,1726285848181,-500.0,0.00014999,2]
[338122911,1726285848192,-506.29514507,0.00014999,2]
[338122913,1726285848203,-500.0,0.00014999,2]
[338122915,1726285848215,-500.0,0.00014999,2]
[338122917,1726285848226,-500.0,0.00014999,2]
[338122919,1726285848237,-500.0,0.00014999,2]
[338122922,1726285848248,-500.0,0.00014999,2]
[338122924,1726285848259,-500.0,0.00014999,2]
[338122926,1726285848269,-500.0,0.00014999,2]
[338122928,1726285848279,-234.58301131,0.00014999,2]
[338122930,1726285848290,-500.0,0.00014999,2]
[338122932,1726285848301,-500.0,0.00014999,2]
[338122934,1726285848312,-500.0,0.00014999,2]
[338122937,1726285848325,-500.0,0.00014999,2]
[338122939,1726285848335,-500.0,0.00014999,2]
[338122941,1726285848345,-500.0,0.00014999,2]
[338122943,1726285848357,-500.0,0.00014999,2]
[338122945,1726285848368,-500.0,0.00014999,2]
[338122947,1726285848378,-500.0,0.00014999,2]
[338122949,1726285848389,-500.0,0.00014999,2]
[338122951,1726285848399,-500.0,0.00014999,2]
[338122953,1726285848410,-500.0,0.00014999,2]
[338122955,1726285848421,-500.0,0.00014999,2]
[338122957,1726285848432,-500.0,0.00014999,2]
[338122959,1726285848442,-500.0,0.00014999,2]
[338122961,1726285848452,-500.0,0.00014999,2]
[338122963,1726285848462,-500.0,0.00014999,2]
[338122965,1726285848473,-467.63400255,0.00014999,2]
[338122967,1726285848483,-500.0,0.00014999,2]
[338122969,1726285848495,-500.0,0.00014999,2]
[338122971,1726285848506,-500.0,0.00014999,2]
[338122973,1726285848516,-500.0,0.00014999,2]
[338122975,1726285848526,-500.0,0.00014999,2]
[338122978,1726285848536,-500.0,0.00014999,2]
[338122980,1726285848547,-500.0,0.00014999,2]
[338122981,1726285848556,-500.0,0.00014999,2]
[338122983,1726285848566,-500.0,0.00014999,2]
[338122985,1726285848577,-500.0,0.00014999,2]
[338122987,1726285848588,-500.0,0.00014999,2]
[338122989,1726285848598,-500.0,0.00014999,2]
[338122991,1726285848609,-500.0,0.00014999,2]
[338122994,1726285848619,-500.0,0.00014999,2]
[338122996,1726285848629,-500.0,0.00014999,2]
[338122998,1726285848639,-500.0,0.00014999,2]
[338123000,1726285848649,-500.0,0.00014999,2]
[338123002,1726285848659,-500.0,0.00014999,2]
[338123004,1726285848670,-500.0,0.00014999,2]
[338123006,1726285848680,-500.0,0.00014999,2]
[338123008,1726285848691,-500.0,0.00014999,2]
[338123010,1726285848701,-500.0,0.00014999,2]
[338123012,1726285848710,-500.0,0.00014999,2]
[338123014,1726285848720,-500.0,0.00014999,2]
[338123016,1726285848731,-500.0,0.00014999,2]
[338123018,1726285848742,-500.0,0.00014999,2]
[338123020,1726285848753,-500.0,0.00014999,2]
[338123023,1726285848764,-179.5969188,0.00014999,2]
[338123025,1726285848775,-500.0,0.00014999,2]
[338123027,1726285848786,-373.09294235,0.00014999,2]
[338123029,1726285848796,-500.0,0.00014999,2]
[338123031,1726285848806,-425.0218844,0.00014999,2]
[338123033,1726285848816,-500.0,0.00014999,2]
[338123035,1726285848827,-500.0,0.00014999,2]
[338123037,1726285848838,-500.0,0.00014999,2]
[338123039,1726285848848,-500.0,0.00014999,2]
[338123041,1726285848861,-500.0,0.00014999,2]
[338123043,1726285848872,-500.0,0.00014999,2]
[338123045,1726285848882,-500.0,0.00014999,2]
[338123047,1726285848893,-500.0,0.00014999,2]
[338123049,1726285848903,-391.16948929,0.00014999,2]
[338123051,1726285848915,-164.62996425,0.00015,2]
[338123053,1726285848926,-18848.37928243,0.00015,2]
[338123055,1726285848937,-162891.76280682,0.00015,2]
[338123057,1726285848948,-688648.35456923,0.00015,2]
[338123064,1726285849003,-500.53771836,0.00015,2]
[338124544,1726285986419,152.13,0.00010959,2]
[338124545,1726286014778,500.0,0.0002694,120]
[338124546,1726286019579,214.394021,0.0002484,120]
[338124554,1726286173789,2000.0,0.00026,60]
[338124555,1726286184033,437.55355507,0.00031352,30]
[338124556,1726286251156,150.93,0.00011935,2]
[338124557,1726286517008,155.2,0.00010959,2]
[338124558,1726286563970,3022.96477894,0.00011604,2]
[338124559,1726286687515,243900.0,0.00031355,120]
[338124560,1726286735611,174.54,0.00011017,2]
[338124561,1726286804359,151.33,0.00011866,2]
[338124562,1726286827881,9392.6490981,0.00026,60]
[338124565,1726287031926,-269.0000005,0.00013157,2]
[338124566,1726287031980,-800.07111468,0.00013157,2]
[338124567,1726287031992,-1621.32788482,0.00013157,2]
[338124568,1726287032002,-1548.0,0.0001327,2]
[338124569,1726287032011,-624.0,0.0001327,2]
[338124570,1726287032020,-150.0,0.00013488,2]
[338124571,1726287032029,-150.0,0.00013488,2]
[338124572,1726287032039,-152.07045663,0.00013488,2]
[338124573,1726287032051,-150.0,0.00013488,2]
[338124574,1726287032060,-3855.25335393,0.00013731,2]
[338124575,1726287032073,-266.95294903,0.00013731,2]
[338124576,1726287032084,-885.09342961,0.00013731,2]
[338124577,1726287032096,-8857.72706137,0.00013731,2]
[338124578,1726287032107,-710.26876103,0.00013731,2]
[338124579,1726287032118,-8403.01487636,0.00013731,2]
[338124580,1726287032130,-911.68956867,0.00013731,2]
[338124581,1726287032140,-150.0,0.00013772,2]
[338124582,1726287032148,-963.48,0.00013796,2]
[338124583,1726287032159,-250.0,0.0001382,2]
[338124584,1726287032169,-587.22,0.0001382,2]
[338124585,1726287032179,-1000.0,0.00013823,2]
[338124586,1726287032189,-166.45,0.00013987,2]
[338124587,1726287032199,-1299.39820461,0.00014075,2]
[338124588,1726287032213,-3006.95450631,0.00014075,2]
[338124589,1726287032230,-331.9629089,0.00014075,2]
[338124590,1726287032241,-5647.68438018,0.00014075,2]
[338124591,1726287032250,-150.99,0.00014075,2]
[338124592,1726287032259,-67.66996882,0.0001414,2]
[338124593,1726287032271,-82.33003118,0.0001414,2]
[338124594,1726287032280,-422.69033431,0.00014463,7]
[338124595,1726287032294,-860.97154633,0.00014463,7]
[338124597,1726287032310,-2301.33811936,0.00014463,7]
[338124599,1726287032321,-200.42,0.000145,2]
[338124601,1726287032331,-150.0,0.00014508,2]
[338124603,1726287032341,-1000.0,0.00014521,2]
[338124605,1726287032351,-151.33,0.00014554,2]
[338124607,1726287032362,-150.0,0.00014731,2]
[338124608,1726287032371,-592.98933801,0.000148,2]
[338124609,1726287032384,-150.0,0.00014846,2]
[338124610,1726287032394,-150.0,0.00014849,2]
[338124611,1726287032403,-506.054,0.0001485,2]
[338124612,1726287032412,-180.74,0.0001485,2]
[338124613,1726287032422,-1159.51462,0.0001485,2]
[338124614,1726287032431,-1573.96891,0.0001485,2]
[338124615,1726287032443,-150.0,0.00014875,2]
[338124616,1726287032454,-308.96607321,0.00014886,2]
[338124617,1726287032464,-308.96607312,0.00014888,2]
[338124618,1726287032474,-308.96607312,0.00014889,2]
[338124619,1726287032483,-329.17987969,0.0001489,2]
[338124620,1726287032495,-308.96607312,0.00014891,2]
[338124621,1726287032504,-308.96607312,0.00014892,2]
[338124622,1726287032515,-308.96607312,0.00014894,2]
[338124623,1726287032525,-308.96607312,0.00014895,2]
[338124624,1726287032535,-308.96607312,0.00014897,2]
[338124625,1726287032544,-308.96607312,0.00014898,2]
[338124626,1726287032554,-1467.93633078,0.00014899,2]
[338124627,1726287032563,-2018.28556758,0.000149,2]
[338124628,1726287032572,-2542.26588269,0.000149,2]
[338124629,1726287032581,-1573.96891,0.000149,2]
[338124630,1726287032590,-308.96607312,0.000149,2]
[338124631,1726287032600,-153.6520114,0.000149,2]
[338124632,1726287032609,-8087.63995788,0.000149,2]
[338124633,1726287032618,-235.5362767,0.000149,2]
[338124634,1726287032627,-413.14401861,0.000149,2]
[338124635,1726287032636,-150.0,0.00014907,2]
[338124636,1726287032646,-3770.75,0.00014939,2]
[338124637,1726287032655,-222.3636,0.00014959,2]
[338124638,1726287032665,-150.0,0.00014961,2]
[338124639,1726287032674,-500.0,0.00014973,2]
[338124640,1726287032683,-160.12585638,0.00014973,2]
[338124641,1726287032692,-611.91180232,0.00014973,2]
[338124642,1726287032701,-150.0,0.00014974,2]
[338124643,1726287032710,-59283.7501904,0.0001498,3]
[338124644,1726287032720,-150.0,0.0001498,2]
[338124645,1726287032729,-67064.35600755,0.0001498,3]
[338124646,1726287032741,-11046.89,0.0001498,3]
[338124647,1726287032752,-833.79793316,0.0001498,3]
[338124648,1726287032763,-99.95631319,0.0001498,3]
[338124649,1726287032772,-151.74,0.0001498,2]
[338124650,1726287032781,-67.17058667,0.00014986,2]
[338124651,1726287034414,-82.82941333,0.00014986,2]
[338124652,1726287034423,-150.0,0.00014986,2]
[338124653,1726287034433,-118567.500381,0.0001499,3]
[338124654,1726287034442,-37093.4679054,0.0001499,3]
[338124655,1726287034451,-237135.000762,0.0001499,3]
[338124656,1726287034461,-56876.6507883,0.0001499,3]
[338124657,1726287034470,-2225.1968356,0.0001499,2]
[338124658,1726287034480,-151.74,0.0001499,2]
[338124659,1726287034489,-151.74,0.0001499,2]
[338124660,1726287034498,-151.74,0.0001499,2]
[338124661,1726287034507,-151.74,0.0001499,2]
[338124662,1726287034517,-151.74,0.0001499,2]
[338124663,1726287034526,-151.74,0.0001499,2]
[338124664,1726287034535,-151.74,0.0001499,2]
[338124665,1726287034545,-151.74,0.0001499,2]
[338124666,1726287034555,-151.74,0.0001499,2]
[338124667,1726287034564,-151.74,0.0001499,2]
[338124668,1726287034573,-151.74,0.0001499,2]
[338124669,1726287034583,-151.74,0.0001499,2]
[338124670,1726287034592,-208.07261695,0.00014996,2]
[338124671,1726287034601,-300.02,0.00014999,2]
[338124672,1726287034610,-577.0,0.00015,2]
[338124673,1726287034619,-237163.52847049,0.00015,2]
[338124674,1726287034629,-3810.84,0.00015,2]
[338124675,1726287034638,-233642.82767317,0.00015,2]
[338124676,1726287034649,-415.09721781,0.00015,2]
[338124677,1726287034666,-308.807424,0.00015,2]
[338124679,1726287038006,-1370.23840371,0.00015,2]
[338124681,1726287038059,-1291.67234278,0.00015,2]
[338124682,1726287038116,-2944.34240302,0.00015,2]
[338124683,1726287038128,-6265.43778303,0.00015,2]
[338124684,1726287038138,-2835.94037487,0.00015,2]
[338124685,1726287038151,-8693.51986952,0.00015,2]
[338124686,1726287038163,-1381.24087936,0.00015,2]
[338124687,1726287038174,-31253.03540949,0.00015,2]
[338124688,1726287038191,-563.01922601,0.00015,2]
[338124689,1726287038224,-452.76,0.00015,2]
[338124690,1726287038278,-661890.31706451,0.00015,2]
[338124703,1726287038516,-117216.17332166,0.00015,2]
[338124705,1726287038528,-464.79155893,0.00015,2]
[338124707,1726287038539,-32924.77774636,0.00015,2]
[338124850,1726287040339,-9074.04701598,0.00015,2]
[338124852,1726287040351,-4439.27591135,0.00015,2]
[338125106,1726287043120,-516.0,0.00015,2]
[338125108,1726287043130,-119.21123001,0.00015,2]
[338125180,1726287044043,-423.97074858,0.00015,2]
[338125391,1726287046170,-11139.44584899,0.00015,2]
[338127074,1726287332124,152.09,0.00011717,2]
[338127076,1726287468926,345.98,0.000125,2]
[338127077,1726287501303,3022.96477894,0.00011604,2]
[338127078,1726287785420,631.09085634,0.0003134,120]
[338127079,1726287944266,152.09,0.00011747,2]
[338127082,1726288008287,836.55,0.00010959,2]
[338127083,1726288038927,156.48,0.00010959,2]
[338127097,1726288232124,2619.0,0.0003134,120]
[338127101,1726288232197,-300.0,0.000128,4]
[338127102,1726288232206,-184.26903934,0.00012899,2]
[338127103,1726288232215,-518.95666546,0.000129,4]
[338127104,1726288232226,-81.04333454,0.000129,4]
[338127105,1726288232235,-156.82,0.0001299,2]
[338127106,1726288232245,-45.94666556,0.00012999,2]
[338127107,1726288232260,-254.05333444,0.00012999,2]
[338127108,1726288232269,-150.0,0.00012999,2]
[338127109,1726288232278,-341.26035322,0.00013,2]
[338127110,1726288232289,-1033.09125361,0.00013,2]
[338127111,1726288232314,-295.4294,0.00013,2]
[338127112,1726288232326,-4206.68927218,0.00013,2]
[338127113,1726288232337,-844.63596783,0.00013,2]
[338127115,1726288238431,-10279.0,0.00013,2]
[338127288,1726288240411,-14493.47507119,0.00013,2]
[338127290,1726288240424,-542.04954358,0.00013,2]
[338127297,1726288240480,-12322.06075338,0.00013,2]
[338127543,1726288243319,-500.0,0.00013,2]
[338127548,1726288243376,-56076.44893448,0.00013,2]
[338127619,1726288244353,-279.92356222,0.00013,2]
[338127620,1726288244365,-5262.45727358,0.00013,2]
[338127621,1726288244376,-3932.95846468,0.00013,2]
[338133824,1726288437407,3022.96477894,0.00011604,2]
[338133825,1726288442208,152.45,0.00011205,2]
[338133826,1726288726532,160.42181372,0.00026,60]
[338133828,1726288773949,-10000.0,0.00015,15]
[338133830,1726288833018,-268.08,0.00016658,30]
[338133831,1726288833041,-1800.0,0.00017,18]
[338133832,1726288846585,-1000.0,0.00018,30]
[338133833,1726288846606,-1000.0,0.00018,30]
[338133834,1726288846627,-1000.0,0.00018,30]
[338133835,1726288976049,150.0,0.00028,120]
[338133836,1726289091797,152.13,0.00010959,2]
[338133842,1726289180395,254.67,0.00016658,30]
[338133878,1726289210970,152.78,0.0001095,2]
[338133974,1726289288017,500.0,0.00031339,30]
[338133980,1726289288335,500.0,0.00031339,30]
[338133983,1726289288605,500.0,0.00031339,30]
[338133988,1726289289081,500.0,0.00031339,30]
[338133990,1726289289337,500.0,0.00031339,30]
[338133991,1726289289806,500.0,0.00031339,30]
[338133992,1726289289908,325.0119068,0.00031339,30]
[338133999,1726289292007,500.0,0.00031339,30]
[338134003,1726289292266,500.0,0.00031339,30]
[338134005,1726289292506,500.0,0.00031339,30]
[338134007,1726289292765,500.0,0.00031339,30]
[338134008,1726289293074,221.4,0.00031339,30]
[338134153,1726289366658,2000.0,0.0003134,30]
[338134154,1726289366942,2000.0,0.0003134,30]
[338134155,1726289367198,2000.0,0.0003134,30]
[338134156,1726289367452,2000.0,0.0003134,30]
[338134157,1726289367733,2000.0,0.0003134,30]
[338134158,1726289367991,2000.0,0.0003134,30]
[338134159,1726289368254,2000.0,0.0003134,30]
[338134160,1726289368548,2000.0,0.0003134,30]
[338134161,1726289368816,2000.0,0.0003134,30]
[338134162,1726289369067,2000.0,0.0003134,30]
[338134163,1726289369310,2000.0,0.0003134,30]
[338134164,1726289369638,2000.0,0.0003134,30]
[338134165,1726289369884,2000.0,0.0003134,30]
[338134166,1726289370147,2000.0,0.0003134,30]
[338134167,1726289370413,2000.0,0.0003134,30]
[338134168,1726289370675,2000.0,0.0003134,30]
[338134169,1726289370947,2000.0,0.0003134,30]
[338134170,1726289371209,2000.0,0.0003134,30]
[338134171,1726289371470,2000.0,0.0003134,30]
[338134172,1726289371738,1002.97879612,0.0003134,30]
[338134173,1726289373229,3022.96477894,0.00011604,2]
[338134174,1726289393873,2882.77,0.00012638,2]
[338134175,1726289411180,166.45,0.00012631,2]
[338134176,1726289414315,1050.0,0.00011,2]
[338134177,1726289418161,500.0,0.0003134,30]
[338134178,1726289418281,500.0,0.0003134,30]
[338134179,1726289418524,500.0,0.0003134,30]
[338134180,1726289419414,500.0,0.0003134,30]
[338134181,1726289420575,500.0,0.0003134,30]
[338134182,1726289420922,500.0,0.0003134,30]
[338134183,1726289421411,500.0,0.0003134,30]
[338134184,1726289429237,250.0,0.00012523,2]
[338134194,1726289432268,-1000.0,0.00012694,2]
[338134195,1726289432277,-200.0,0.000127,4]
[338134196,1726289432287,-404.843,0.0001274,2]
[338134197,1726289432297,-180.74,0.0001274,2]
[338134198,1726289432307,-128.45594294,0.000128,4]
[338134199,1726289432325,-371.54405706,0.000128,4]
[338134200,1726289432335,-388.05839053,0.000128,2]
[338134201,1726289432347,-221.42840947,0.000128,2]
[338134202,1726289432357,-16485.98590638,0.00012899,2]
[338134203,1726289432382,-320.66312088,0.00012899,2]
[338134204,1726289432442,-538.29120614,0.00012899,2]
[338134205,1726289432453,-119.19806649,0.00012899,2]
[338134206,1726289432462,-300.0,0.00012899,2]
[338134207,1726289432471,-780.80193351,0.000129,2]
[338134208,1726289432517,227.26,0.0003134,30]
[338134209,1726289432530,-1198.71536649,0.000129,2]
[338134210,1726289432540,-2741.6223,0.000129,2]
[338134211,1726289432549,-152.94727742,0.000129,2]
[338134212,1726289432558,-365.67190507,0.000129,4]
[338134213,1726289432570,-434.32809493,0.000129,4]
[338134214,1726289432579,-169.5838256,0.000129,2]
[338134215,1726289432588,-791.96557583,0.00012915,2]
[338134216,1726289432600,-2622.37071056,0.00012915,2]
[338134217,1726289432615,-151.63371361,0.00012915,2]
[338134219,1726289432624,-207.53161341,0.00012915,2]
[338134220,1726289432635,-3416.88,0.00012915,2]
[338134225,1726289438766,-14858.39397878,0.00012915,2]
[338134405,1726289440540,-701.45178674,0.00012915,2]
[338134407,1726289440554,-1655.95800876,0.00012915,2]
[338134409,1726289440565,-606.3531216,0.00012915,2]
[338134411,1726289440577,-266.56,0.00012915,2]
[338135014,1726289446822,-369.00149071,0.00012915,2]
[338135016,1726289446831,-179.56,0.00012916,2]
[338135018,1726289446840,-21251.49563102,0.00013,2]
[338135021,1726289446852,-1580.25000003,0.00013,2]
[338135024,1726289446876,-643.03399093,0.00013,2]
[338135424,1726289473253,2095.87,0.0003134,30]
[338135425,1726289473510,2095.87,0.0003134,30]
[338135426,1726289473860,2095.87,0.0003134,30]
[338135427,1726289474241,2095.87,0.0003134,30]
[338135428,1726289474506,2095.87,0.0003134,30]
[338135429,1726289474631,2095.87,0.0003134,30]
[338135430,1726289474933,2095.87,0.0003134,30]
[338135431,1726289475260,2095.87,0.0003134,30]
[338135432,1726289475557,2095.87,0.0003134,30]
[338135433,1726289475825,2095.87,0.0003134,30]
[338135434,1726289476088,2095.87,0.0003134,30]
[338135435,1726289476435,2095.87,0.0003134,30]
[338135436,1726289476709,2095.87,0.0003134,30]
[338135437,1726289476966,2095.87,0.0003134,30]
[338135438,1726289477247,2095.87,0.0003134,30]
[338135439,1726289477566,2095.87,0.0003134,30]
[338135440,1726289478269,2095.87,0.0003134,30]
[338135441,1726289478550,2095.87,0.0003134,30]
[338135442,1726289478803,2095.87,0.0003134,30]
[338135443,1726289479094,2095.87,0.0003134,30]
[338135444,1726289479351,2095.87,0.0003134,30]
[338135445,1726289479665,2095.87,0.0003134,30]
[338135446,1726289479942,2095.87,0.0003134,30]
[338135447,1726289480225,2096.05778214,0.0003134,30]
[338135448,1726289486165,1062.21,0.00027918,120]
[338135449,1726289497476,272.95,0.0003134,30]
[338135450,1726289497811,272.95,0.0003134,30]
[338135451,1726289498086,272.95,0.0003134,30]
[338135452,1726289499018,272.95,0.0003134,30]
[338135453,1726289499270,272.95,0.0003134,30]
[338135454,1726289499746,272.95,0.0003134,30]
[338135455,1726289500006,272.95,0.0003134,30]
[338135456,1726289500270,272.95,0.0003134,30]
[338135457,1726289500542,272.95,0.0003134,30]
[338135458,1726289500834,272.95,0.0003134,30]
[338135459,1726289501109,272.95,0.0003134,30]
[338135460,1726289501385,272.95,0.0003134,30]
[338135461,1726289501644,272.95,0.0003134,30]
[338135462,1726289502012,272.95,0.0003134,30]
[338135463,1726289502373,272.95,0.0003134,30]
[338135464,1726289502646,272.95,0.0003134,30]
[338135465,1726289502921,272.95,0.0003134,30]
[338135466,1726289503184,272.95,0.0003134,30]
[338135467,1726289503453,272.95,0.0003134,30]
[338135468,1726289503730,272.95,0.0003134,30]
[338135469,1726289503978,272.95,0.0003134,30]
[338135470,1726289504235,272.95,0.0003134,30]
[338135471,1726289504484,272.95,0.0003134,30]
[338135472,1726289504735,273.08823125,0.0003134,30]
[338135473,1726289523740,533.0,0.00027971,120]
[338135474,1726289546223,533.0,0.00027971,120]
[338135475,1726289579976,533.0,0.00027971,120]
[338135476,1726289588308,31730.32,0.0003134,30]
[338135477,1726289598290,533.0,0.00027971,120]
[338135478,1726289629664,532.61,0.00027971,120]
[338135479,1726289647938,533.0,0.00027971,120]
[338135481,1726289663461,166.74696184,0.0003134,30]
[338135482,1726289664889,100194.86634113,0.0003134,30]
[338135484,1726289683086,739.64,0.0003134,30]
[338135485,1726289683370,739.64,0.0003134,30]
[338135486,1726289683611,739.64,0.0003134,30]
[338135487,1726289683872,739.64,0.0003134,30]
[338135488,1726289684152,739.64,0.0003134,30]
[338135489,1726289684429,739.64,0.0003134,30]
[338135490,1726289684692,739.64,0.0003134,30]
[338135491,1726289684957,739.64,0.0003134,30]
[338135492,1726289685242,739.64,0.0003134,30]
[338135493,1726289685518,739.64,0.0003134,30]
[338135494,1726289685844,739.64,0.0003134,30]
[338135495,1726289686128,739.64,0.0003134,30]
[338135496,1726289686378,739.64,0.0003134,30]
[338135497,1726289686623,739.64,0.0003134,30]
[338135498,1726289686881,739.64,0.0003134,30]
[338135499,1726289687146,739.64,0.0003134,30]
[338135500,1726289687417,739.64,0.0003134,30]
[338135501,1726289687701,739.64,0.0003134,30]
[338135502,1726289687969,739.64,0.0003134,30]
[338135503,1726289688234,739.64,0.0003134,30]
[338135504,1726289688505,739.64,0.0003134,30]
[338135505,1726289688747,739.64,0.0003134,30]
[338135506,1726289688999,739.64,0.0003134,30]
[338135508,1726289689265,739.87164177,0.0003134,30]
[338135529,1726289704603,500.0,0.0003134,30]
[338135531,1726289705374,500.0,0.0003134,30]
[338135532,1726289705630,500.0,0.0003134,30]
[338135534,1726289705879,500.0,0.0003134,30]
[338135537,1726289706132,630.12610679,0.0003134,30]
[338135551,1726289714114,532.61,0.00027971,120]
[338135577,1726289736268,500.0,0.0003134,30]
[338135578,1726289736533,500.0,0.0003134,30]
[338135579,1726289736798,500.0,0.0003134,30]
[338135581,1726289737062,335.78361828,0.0003134,30]
[338135590,1726289804664,153.37,0.00010584,2]
[338135591,1726289816156,500.0,0.0003134,30]
[338135592,1726289816474,500.0,0.0003134,30]
[338135593,1726289816763,411.54121347,0.0003134,30]
[338135594,1726289831680,500.0,0.0003134,30]
[338135595,1726289831972,500.0,0.0003134,30]
[338135596,1726289832261,500.0,0.0003134,30]
[338135597,1726289832881,500.0,0.0003134,30]
[338135598,1726289833185,500.0,0.0003134,30]
[338135599,1726289833476,500.0,0.0003134,30]
[338135600,1726289833740,500.0,0.0003134,30]
[338135601,1726289834007,529.43771717,0.0003134,30]
[338135602,1726289835932,241.93,0.00016658,30]
[338135603,1726289892378,500.0,0.0003134,30]
[338135604,1726289892630,500.0,0.0003134,30]
[338135605,1726289892891,500.0,0.0003134,30]
[338135606,1726289893151,332.99859822,0.0003134,30]
[338135607,1726289924731,562.24,0.00031344,30]
[338135608,1726289924982,562.24,0.00031344,30]
[338135609,1726289925259,562.24,0.00031344,30]
[338135610,1726289925536,562.24,0.00031344,30]
[338135611,1726289925813,562.24,0.00031344,30]
[338135612,1726289926061,562.24,0.00031344,30]
[338135613,1726289926337,562.24,0.00031344,30]
[338135614,1726289926778,562.24,0.00031344,30]
[338135615,1726289926859,562.24,0.00031344,30]
[338135616,1726289927120,562.24,0.00031344,30]
[338135617,1726289928294,562.24,0.00031344,30]
[338135618,1726289928543,562.24,0.00031344,30]
[338135619,1726289928822,562.24,0.00031344,30]
[338135620,1726289929341,562.24,0.00031344,30]
[338135621,1726289929619,562.24,0.00031344,30]
[338135622,1726289929885,562.24,0.00031344,30]
[338135623,1726289930142,562.24,0.00031344,30]
[338135624,1726289930461,562.24,0.00031344,30]
[338135625,1726289930672,562.24,0.00031344,30]
[338135626,1726289930934,562.24,0.00031344,30]
[338135627,1726289931179,562.24,0.00031344,30]
[338135628,1726289931431,562.24,0.00031344,30]
[338135629,1726289931699,562.24,0.00031344,30]
[338135630,1726289931998,562.26747191,0.00031344,30]
[338135631,1726289950437,216.65,0.0001262,2]
[338135632,1726289955125,2052.23,0.0001262,2]
[338135633,1726289981965,200.0,0.00012571,2]
[338135634,1726290003419,532.61,0.00027966,120]
[338135635,1726290003879,-795.83,0.00012663,2]
[338135636,1726290031027,-409.17,0.00012667,2]
[338135637,1726290046297,7119.85,0.0001255,2]
[338135639,1726290107643,153.52,0.00012553,2]
[338135640,1726290119119,6933.6,0.00012553,2]
[338135641,1726290196845,161.35,0.00010959,2]
[338135642,1726290211881,500.0,0.00031344,30]